{"text_format":"3","workbook":"xlsx","n_sheets":2,"sheets":["Sākums","Pakalpojuma rēķins"],"not_rendered":{"images":1,"defined_names":1},"read":"whole","date_system":"1900"}

{"sheet":"Sākums","index":0,"n_rows":8,"n_cols":2,"rows_kept":8}
[null,"PAR ŠO VEIDNI"]
[null,"Izmantojiet šo veidni, lai izveidotu pakalpojuma rēķinu."]
[null,"Ievadiet rēķina numuru, datumu, uzņēmuma nosaukumu, adresi, moto un maksātāja informāciju."]
[null,"Ievadiet informāciju tabulās."]
[null,"Kopsumma tiek automātiski aprēķināta."]
[null,"Piezīme. "]
[null,"Papildu norādījumi ir sniegti darblapas PAKALPOJUMA RĒĶINS kolonnā A. Šis teksts ir paslēpts ar nolūku. Lai tekstu noņemtu, atlasiet kolonnu A, pēc tam atlasiet DZĒST. Lai parādītu slēpto tekstu, atlasiet kolonnu A, pēc tam nomainiet fonta krāsu."]
[null,"Lai iegūtu papildinformāciju par tabulām, tabulā nospiediet taustiņu SHIFT un pēc tam F10, atlasiet opciju TABULA un pēc tam atlasiet ALTERNATĪVAIS TEKSTS."]

{"sheet":"Pakalpojuma rēķins","index":1,"n_rows":44,"n_cols":5,"rows_kept":44,"merged":[[0,1,0,2],[0,3,0,4],[2,1,2,3],[3,1,3,3],[4,1,4,2],[5,1,5,2],[6,1,6,2],[7,1,7,2],[41,1,41,2],[41,3,41,4],[43,1,43,4]]}
[null,"Šajā šūnā ir logotipa vietturis.",null,"RĒĶINS"]
[]
[null,"Jūsu uzņēmuma nosaukums"]
[null,"Jūsu uzņēmuma moto"]
[null,"Iela, mājas nr.",null,"RĒĶINA NR.","Nr."]
[null,"Pilsēta, novads, pasta indekss",null,"DATUMS ",{"$f":"TODAY()","v":"2022-04-29"}]
[null,"Tālrunis Fakss",null,"KLIENTA ID ","ID"]
[null,"E-pasts"]
[null,"KAM","Vārds, uzvārds"]
[null,null,"Uzņēmuma nosaukums"]
[null,null,"Iela, mājas nr."]
[null,null,"Pilsēta, novads, pasta indekss"]
[null,null,"Tālrunis"]
[null,"PĀRDEVĒJS","AMATS","APMAKSAS NOSACĪJUMI","IZPILDES DATUMS"]
[{"$nulls":3},"Apmaksāt pēc saņemšanas"]
[]
[null,"DAUDZUMS","APRAKSTS","VIENĪBAS CENA","RINDIŅAS KOPSUMMA"]
[{"$nulls":4},{"$f":"IF(SUM(B18)>0,SUM(B18*'Pakalpojuma rēķins'!$D18),\"\")","v":""}]
[{"$nulls":4},{"$f":"IF(SUM(B19)>0,SUM(B19*'Pakalpojuma rēķins'!$D19),\"\")","v":""}]
[{"$nulls":4},{"$f":"IF(SUM(B20)>0,SUM(B20*'Pakalpojuma rēķins'!$D20),\"\")","v":""}]
[{"$nulls":4},{"$f":"IF(SUM(B21)>0,SUM(B21*'Pakalpojuma rēķins'!$D21),\"\")","v":""}]
[{"$nulls":4},{"$f":"IF(SUM(B22)>0,SUM(B22*'Pakalpojuma rēķins'!$D22),\"\")","v":""}]
[{"$nulls":4},{"$f":"IF(SUM(B23)>0,SUM(B23*'Pakalpojuma rēķins'!$D23),\"\")","v":""}]
[{"$nulls":4},{"$f":"IF(SUM(B24)>0,SUM(B24*'Pakalpojuma rēķins'!$D24),\"\")","v":""}]
[{"$nulls":4},{"$f":"IF(SUM(B25)>0,SUM(B25*'Pakalpojuma rēķins'!$D25),\"\")","v":""}]
[{"$nulls":4},{"$f":"IF(SUM(B26)>0,SUM(B26*'Pakalpojuma rēķins'!$D26),\"\")","v":""}]
[{"$nulls":4},{"$f":"IF(SUM(B27)>0,SUM(B27*'Pakalpojuma rēķins'!$D27),\"\")","v":""}]
[{"$nulls":4},{"$f":"IF(SUM(B28)>0,SUM(B28*'Pakalpojuma rēķins'!$D28),\"\")","v":""}]
[{"$nulls":4},{"$f":"IF(SUM(B29)>0,SUM(B29*'Pakalpojuma rēķins'!$D29),\"\")","v":""}]
[{"$nulls":4},{"$f":"IF(SUM(B30)>0,SUM(B30*'Pakalpojuma rēķins'!$D30),\"\")","v":""}]
[{"$nulls":4},{"$f":"IF(SUM(B31)>0,SUM(B31*'Pakalpojuma rēķins'!$D31),\"\")","v":""}]
[{"$nulls":4},{"$f":"IF(SUM(B32)>0,SUM(B32*'Pakalpojuma rēķins'!$D32),\"\")","v":""}]
[{"$nulls":4},{"$f":"IF(SUM(B33)>0,SUM(B33*'Pakalpojuma rēķins'!$D33),\"\")","v":""}]
[{"$nulls":4},{"$f":"IF(SUM(B34)>0,SUM(B34*'Pakalpojuma rēķins'!$D34),\"\")","v":""}]
[{"$nulls":4},{"$f":"IF(SUM(B35)>0,SUM(B35*'Pakalpojuma rēķins'!$D35),\"\")","v":""}]
[{"$nulls":4},{"$f":"IF(SUM(B36)>0,SUM(B36*'Pakalpojuma rēķins'!$D36),\"\")","v":""}]
[{"$nulls":4},{"$f":"IF(SUM(B37)>0,SUM(B37*'Pakalpojuma rēķins'!$D37),\"\")","v":""}]
[{"$nulls":3},"STARPSUMMA",{"$f":"IF(SUM(E18:E37)>0,SUM(E18:E37),\"\")","v":""}]
[{"$nulls":3},"PVN"]
[{"$nulls":3},"KOPĀ",{"$f":"IF(SUM(E38)>0,SUM((E38*E39)+E38),\"\")","v":""}]
[]
[null,"Visi čeki ir jāsamaksā uzņēmumam",null,{"$f":"B3","v":"Jūsu uzņēmuma nosaukums"}]
[]
[null,"PALDIES PAR SADARBĪBU!"]